bitfinex-derivatives/quotes_SOLF0:USTF0_20241216
["timestamp","ask_amount","ask_price","bid_price","bid_amount"]
[1734349029083,2.3157,215.98,215.91,2.3164]
[1734349029588,2.3156,215.99,215.93,2.3162]
[1734349030785,1.4533,216.02,215.89,5.44066061]
[1734349030985,11.33158981,215.97,215.89,5.44066061]
[1734349031686,11.33158981,215.97,215.83,11.33158981]
[1734349031687,2.54,215.98,215.87,2.54]
[1734349032089,11.33158981,216.0,215.87,2.54]
[1734349032486,11.33158981,216.0,215.88,2.54]
[1734349032683,11.33158981,216.0,215.89,2.54]
[1734349032992,11.33158981,216.0,215.92,2.3163]
[1734349033592,11.33158981,216.0,215.93,5.09123922]
[1734349033791,2.3154,216.01,215.94,5.09123922]
[1734349033994,2.3154,216.01,215.95,5.09123922]
[1734349034190,2.3154,216.01,215.89,11.33158981]
[1734349034191,2.3154,216.01,215.96,5.09123922]
[1734349034390,2.3154,216.01,215.93,2.54]
[1734349034593,2.3155,216.0,215.94,7.40622293]
[1734349034795,2.3155,216.0,215.95,5.09012293]
[1734349034996,2.3155,216.0,215.96,5.09012293]
[1734349035195,2.3155,216.0,215.97,5.09012293]
[1734349035391,2.3155,216.0,215.98,5.09012293]
[1734349035694,2.3155,216.0,215.94,2.3161]
[1734349035988,2.54,216.01,215.95,5.08969246]
[1734349036299,11.33158981,215.97,215.83,11.33158981]
[1734349036595,11.33158981,215.97,215.86,2.317]
[1734349037385,2.3163,215.92,215.86,2.317]
[1734349037593,11.33158981,215.97,215.85,2.54]
[1734349038084,2.316,215.95,215.88,2.3167]
[1734349038289,11.33158981,215.97,215.85,2.54]
[1734349038494,1.4533,216.02,215.83,2.54]
[1734349038495,11.33158981,215.94,215.83,2.54]
[1734349038696,3.0116,215.93,215.83,2.54]
[1734349039399,1.5099,215.96,215.83,13.87158981]
[1734349039895,13.87158981,216.0,215.86,11.33158981]
[1734349040198,11.33158981,216.0,215.86,11.33158981]
[1734349040697,2.3156,215.99,215.92,2.3162]
[1734349040892,2.3156,215.99,215.91,2.54]
[1734349041093,2.3156,215.99,215.8,2.9735]
[1734349041094,2.3166,215.9,215.8,15.05942324]
[1734349041393,2.3166,215.9,215.77,11.33158981]
[1734349041394,4.0334,215.89,215.77,11.33158981]
[1734349041599,4.0334,215.89,215.77,13.87158981]
[1734349042094,1.4934,215.89,215.77,13.87158981]
[1734349042294,2.317,215.85,215.78,2.3177]
[1734349042795,1.4934,215.89,215.78,2.3177]
[1734349042796,2.3171,215.84,215.78,2.3177]
[1734349042997,2.3171,215.84,215.78,2.54]
[1734349043691,2.3169,215.86,215.78,4.8577]
[1734349043894,1.4934,215.89,215.78,2.54]
[1734349044801,2.317,215.85,215.77,11.33158981]
[1734349044991,2.317,215.85,215.78,2.54]
[1734349046089,2.3168,215.87,215.8,11.33158981]
[1734349046292,11.33158981,215.93,215.78,2.54]
[1734349046293,11.33158981,215.96,215.83,11.33158981]
[1734349046486,15.92478981,215.99,215.86,11.33158981]
[1734349047192,15.92478981,215.99,215.9,2.3164]
[1734349047394,1.595,215.99,215.9,2.6]
[1734349047597,2.3154,216.0,215.9,2.6]
[1734349047792,11.33158981,216.02,215.93,2.3161]
[1734349047999,2.3155,215.99,215.93,2.3161]
[1734349048200,2.3155,215.99,215.94,5.02736139]
[1734349048399,11.33158981,216.05,215.95,7.62736139]
[1734349048588,2.3151,216.03,215.96,7.34316139]
[1734349048788,2.3151,216.03,215.95,2.6]
[1734349048789,2.3151,216.03,215.97,5.02736139]
[1734349048987,2.3151,216.03,215.98,5.02673351]
[1734349049295,2.3151,216.03,215.99,5.02643678]
[1734349049495,2.3151,216.03,215.96,2.3157]
[1734349049694,2.3151,216.03,215.97,5.0253207]
[1734349049895,2.3151,216.03,215.98,5.0253207]
[1734349050091,11.33158981,216.05,215.92,11.33158981]
[1734349050092,11.33158981,216.05,215.99,5.0253207]
[1734349050293,11.33158981,216.02,215.97,2.6]
[1734349050491,11.33158981,215.99,215.93,2.6]
[1734349050691,2.3157,215.97,215.93,2.6]
[1734349051304,244.0,215.87,215.73,15.05942324]
[1734349051490,244.0,215.87,215.77,1.5585]
[1734349052095,244.0,215.87,215.78,2.6]
[1734349052692,11.33158981,215.88,215.78,2.6]
[1734349053603,11.33158981,215.88,215.77,9.65517556]
[1734349054193,2.3172,215.83,215.77,9.65517556]
[1734349054795,2.317,215.85,215.77,7.05517556]
[1734349055099,11.33158981,215.88,215.77,9.65517556]
[1734349056399,2.3171,215.84,215.77,9.65517556]
[1734349057501,2.3171,215.84,215.77,11.97297556]
[1734349057698,2.6,215.86,215.77,7.05517556]
[1734349057907,11.33158981,215.82,215.66,11.33158981]
[1734349058203,2.3182,215.74,215.67,2.3188]
[1734349058806,10.78499077,215.73,215.67,2.3188]
[1734349059105,2.3182,215.74,215.67,2.3188]
[1734349059106,10.78499077,215.72,215.67,2.3188]
[1734349059307,10.78499077,215.71,215.67,2.3188]
[1734349059599,10.78026297,215.7,215.68,2.3188]
[1734349059803,2.3181,215.76,215.68,7.81759676]
[1734349059804,4.14807337,215.69,215.68,7.81759676]
[1734349060196,2.3181,215.76,215.68,7.81759676]
[1734349060499,10.77599891,215.75,215.68,7.81759676]
[1734349060708,10.77599891,215.74,215.69,2.3187]
[1734349061008,10.77599891,215.73,215.69,2.3187]
[1734349061304,10.77599891,215.72,215.71,2.3185]
[1734349061504,4.14467518,215.72,215.71,2.3185]
[1734349062503,14.65158981,215.82,215.71,2.3185]
[1734349062708,10.76404591,215.81,215.71,2.3185]
[1734349062904,10.76404591,215.8,215.71,2.3185]
[1734349063109,10.76404591,215.79,215.71,2.3185]
[1734349063312,10.76404591,215.78,215.69,11.33158981]
[1734349063606,10.75982609,215.77,215.72,2.3184]
[1734349063812,10.75982609,215.76,215.69,11.33158981]
[1734349064011,4.13839465,215.75,215.74,2.3182]
[1734349064307,10.75896534,215.75,215.62,11.33158981]
[1734349064505,10.75896534,215.74,215.63,4.572]
[1734349064703,10.75896534,215.73,215.65,11.33158981]
[1734349065007,4.13839465,215.72,215.67,5.64052686]
[1734349065206,4.13839465,215.71,215.67,5.64052686]
[1734349065402,2.3179,215.77,215.7,2.3186]
[1734349065608,10.75255995,215.76,215.7,2.3186]
[1734349065911,10.75255995,215.75,215.67,5.64052686]
[1734349066112,10.75255995,215.74,215.68,3.32]
[1734349066411,4.13559998,215.73,215.68,3.32]
[1734349066712,2.3178,215.78,215.71,2.3184]
[1734349066911,10.74910455,215.77,215.71,2.3184]
[1734349067109,10.74910455,215.76,215.73,2.3183]
[1734349067311,2.3176,215.8,215.73,2.3183]
[1734349067312,10.74910455,215.75,215.73,2.3183]
[1734349067510,4.13428609,215.74,215.73,2.3183]
[1734349068409,11.33158981,215.82,215.71,14.65158981]
[1734349068711,6.61408898,215.81,215.71,14.65158981]
[1734349069004,11.33158981,215.85,215.71,14.65158981]
[1734349069209,3.1296,215.9,215.74,11.33158981]
[1734349069210,11.33158981,215.88,215.74,11.33158981]
[1734349069611,11.33158981,215.88,215.78,2.3177]
[1734349069810,11.33158981,215.88,215.78,3.32]
[1734349070312,5.4461,215.9,215.82,2.3173]
[1734349070509,3.1296,215.9,215.78,3.32]
[1734349070910,2.3166,215.89,215.79,2.3175]
[1734349071210,11.33158981,215.85,215.78,3.32]
[1734349071414,11.33158981,215.85,215.72,3.32]
[1734349072010,2.3173,215.83,215.72,3.32]
[1734349072210,11.33158981,215.85,215.72,3.32]
[1734349072811,11.33158981,215.85,215.77,2.3178]
[1734349072812,13.64858981,215.85,215.77,2.3178]
[1734349073008,11.33158981,215.85,215.72,3.32]
[1734349073514,2.3172,215.83,215.75,2.3179]
[1734349074015,11.33158981,215.85,215.72,3.32]
[1734349074216,11.33158981,215.85,215.76,2.3179]
[1734349074217,2.3171,215.84,215.76,2.3179]
[1734349075825,11.33158981,215.85,215.76,2.3179]
[1734349076016,2.3172,215.83,215.76,2.3179]
[1734349076819,11.33158981,215.85,215.73,3.32]
[1734349076820,2.3173,215.82,215.73,3.32]
[1734349077022,11.33158981,215.85,215.73,3.32]
[1734349077715,2.3173,215.83,215.75,2.318]
[1734349078921,11.33158981,215.79,215.61,11.33158981]
[1734349079126,6.368,215.78,215.61,11.33158981]
[1734349079325,6.368,215.78,215.64,11.33158981]
[1734349079821,2.3181,215.75,215.67,2.3189]
[1734349080027,5.61477947,215.69,215.67,2.3189]
[1734349080221,6.94971549,215.68,215.59,0.45901]
[1734349080423,5.61477947,215.66,215.61,11.33158981]
[1734349080727,4.34407249,215.65,215.64,2.3192]
[1734349080927,11.29378798,215.65,215.64,2.3192]
[1734349083128,11.29378798,215.65,215.59,0.45901]
[1734349083323,11.33158981,215.75,215.61,2.3195]
[1734349083324,11.01084352,215.64,215.61,2.3195]
[1734349083626,11.01084352,215.63,215.61,2.3195]
[1734349083824,4.34407249,215.62,215.61,2.3195]
[1734349084219,11.33158981,215.75,215.61,11.33158981]
[1734349084533,10.82706721,215.74,215.61,11.33158981]
[1734349084726,10.82706721,215.73,215.61,11.33158981]
[1734349084928,10.82706721,215.72,215.65,2.3191]
[1734349085129,11.33158981,215.75,215.65,2.3191]
[1734349085426,3.97702491,215.74,215.65,2.3191]
[1734349085630,3.97702491,215.73,215.65,2.3191]
[1734349085926,3.97702491,215.72,215.65,2.3191]
[1734349086230,3.97702491,215.71,215.65,2.3191]
[1734349086429,3.97702491,215.7,215.65,2.3191]
[1734349086727,11.33158981,215.75,215.45,4.632]
[1734349086728,18.62861472,215.69,215.45,4.632]
[1734349087025,10.49292491,215.68,215.54,11.33158981]
[1734349087231,3.97702491,215.67,215.54,11.33158981]
[1734349087425,3.97702491,215.66,215.54,11.33158981]
[1734349087621,2.3192,215.64,215.56,2.32]
[1734349087925,3.97702491,215.63,215.54,11.33158981]
[1734349088132,3.97702491,215.62,215.54,11.33158981]
[1734349088326,3.97702491,215.61,215.57,2.32]
[1734349088525,2.3192,215.64,215.57,2.32]
[1734349088730,3.96974949,215.63,215.57,2.32]
[1734349088929,3.96975415,215.62,215.57,2.32]
[1734349089228,3.96975415,215.61,215.57,2.32]
[1734349089430,2.3192,215.64,215.57,2.32]
[1734349089624,3.96787114,215.63,215.57,2.32]
[1734349089820,3.96787114,215.62,215.56,2.81807]
[1734349090024,3.96787114,215.61,215.56,0.49797]
[1734349090227,11.33158981,215.67,215.56,0.49797]
[1734349090431,3.96698291,215.66,215.56,0.49797]
[1734349090626,3.96698291,215.65,215.56,0.49797]
[1734349090830,3.96698291,215.64,215.56,0.49797]
[1734349091031,3.96698291,215.63,215.56,0.49797]
[1734349091235,3.96698291,215.62,215.56,0.49797]
[1734349091434,3.96698291,215.61,215.57,2.3199]
[1734349091634,2.3191,215.65,215.57,2.3199]
[1734349091833,3.96594457,215.64,215.57,2.3199]
[1734349092134,3.96594457,215.63,215.57,2.3199]
[1734349092328,3.96594457,215.62,215.57,2.3199]
[1734349092531,3.96594457,215.61,215.57,2.3199]
[1734349092730,2.3191,215.65,215.56,0.49797]
[1734349092934,3.96692564,215.64,215.58,2.3199]
[1734349093229,3.96692564,215.63,215.58,2.3199]
[1734349093434,2.3191,215.65,215.58,2.3199]
[1734349093435,3.96692564,215.62,215.58,2.3199]
[1734349093735,3.96692564,215.61,215.58,2.3199]
[1734349093941,3.96692564,215.6,215.56,0.49797]
[1734349094230,11.33158981,215.67,215.56,0.49797]
[1734349094434,3.97144993,215.66,215.56,0.49797]
[1734349094636,2.3193,215.63,215.56,0.49797]
[1734349094931,3.97144993,215.62,215.56,0.49797]
[1734349095330,3.97144993,215.61,215.56,0.49797]
[1734349095533,3.97144993,215.6,215.56,0.49797]
[1734349095834,2.3195,215.62,215.56,0.49797]
[1734349095835,3.97144993,215.59,215.56,0.49797]
[1734349096031,11.33158981,215.67,215.56,0.49797]
[1734349096032,3.97144993,215.58,215.56,0.49797]
[1734349096332,3.97744688,215.57,215.56,0.49797]
[1734349097633,3.97744688,215.57,215.56,2.81807]
[1734349098631,11.33158981,215.67,215.56,0.49797]
[1734349098833,2.3196,215.61,215.56,0.49797]
[1734349099040,3.97770059,215.6,215.56,0.49797]
[1734349099234,3.97770059,215.59,215.56,0.49797]
[1734349099435,3.97770059,215.58,215.56,0.49797]
[1734349099635,3.97770059,215.57,215.56,2.81807]
[1734349099835,3.1959,215.68,215.56,11.82955981]
[1734349100037,3.97845363,215.67,215.59,11.33158981]
[1734349100241,3.97845363,215.66,215.59,11.33158981]
[1734349100440,3.97845363,215.65,215.59,11.33158981]
[1734349100645,3.97845363,215.64,215.59,11.33158981]
[1734349100842,3.97845363,215.63,215.59,11.33158981]
[1734349101142,1.6048,215.68,215.62,2.3194]
[1734349101348,3.98015035,215.67,215.62,2.3194]
[1734349101537,1.6048,215.68,215.62,2.3194]
[1734349101737,3.98013949,215.66,215.62,2.3194]
[1734349101937,3.98013949,215.65,215.62,2.3194]
[1734349102138,3.98013949,215.64,215.62,2.3194]
[1734349102338,3.98013949,215.63,215.62,2.3194]
[1734349102541,3.98013949,215.67,215.62,2.3194]
[1734349102742,3.9237,215.68,215.62,2.3194]
[1734349102743,3.98013949,215.66,215.62,2.3194]
[1734349102942,3.98013949,215.65,215.62,2.3194]
[1734349103145,3.98013949,215.64,215.62,2.3194]
[1734349103347,3.98013949,215.63,215.62,2.3194]
[1734349103646,3.98013949,215.67,215.62,2.3194]
[1734349103846,3.98013949,215.66,215.62,2.3194]
[1734349104041,3.98013949,215.65,215.62,2.3194]
[1734349104349,3.9237,215.68,215.62,2.3194]
[1734349104350,3.98013949,215.64,215.62,2.3194]
[1734349104550,3.98013949,215.63,215.62,2.3194]
[1734349104750,2.3189,215.68,215.63,2.3193]
[1734349104943,3.98124995,215.67,215.63,2.3193]
[1734349105142,3.98124995,215.66,215.63,2.3193]
[1734349105437,3.98124995,215.65,215.63,2.3193]
[1734349105643,3.857,215.69,215.63,2.3193]
[1734349105644,3.98124995,215.64,215.63,2.3193]
[1734349108649,1.478,215.73,215.66,2.3189]
[1734349108850,3.98198325,215.72,215.66,2.3189]
[1734349109051,3.98198325,215.71,215.66,2.3189]
[1734349109244,3.98198325,215.7,215.66,2.3189]
[1734349109551,3.982477,215.69,215.66,2.3189]
[1734349109849,3.982477,215.68,215.66,2.3189]
[1734349110044,3.982477,215.67,215.66,2.3189]
[1734349110241,3.982477,215.72,215.65,11.33158981]
[1734349110440,3.982477,215.71,215.65,11.33158981]
[1734349110739,3.982477,215.7,215.65,11.33158981]
[1734349110945,3.982477,215.69,215.65,11.33158981]
[1734349111244,3.982477,215.68,215.64,3.04]
[1734349111444,3.982477,215.67,215.64,3.04]
[1734349111646,3.982477,215.66,215.64,3.04]
[1734349111846,3.982477,215.66,215.62,16.97450505]
[1734349111847,3.982477,215.65,215.62,20.01450505]
[1734349112048,3.982477,215.64,215.63,2.3193]
[1734349112544,3.982477,215.64,215.62,20.01450505]
[1734349112847,2.3185,215.71,215.62,20.01450505]
[1734349113050,6.30160899,215.7,215.65,2.3191]
[1734349113245,3.98300899,215.69,215.62,20.01450505]
[1734349113446,3.98300899,215.68,215.62,20.01450505]
[1734349113648,3.98300899,215.67,215.63,2.3193]
[1734349113849,3.98300899,215.66,215.63,2.3193]
[1734349114052,3.98300899,215.65,215.63,2.3193]
[1734349114241,3.98300899,215.64,215.63,2.3193]
[1734349114447,3.98300899,215.68,215.63,2.3193]
[1734349114643,3.98300899,215.67,215.63,2.3193]
[1734349114941,3.98300899,215.66,215.63,2.3193]
[1734349115147,3.98300899,215.65,215.63,2.3193]
[1734349115348,2.3187,215.69,215.63,2.3193]
[1734349115349,3.98300899,215.64,215.63,2.3193]
[1734349115544,3.98300899,215.68,215.63,2.3193]
[1734349115749,3.98300899,215.67,215.63,2.3193]
[1734349115950,3.98300899,215.66,215.64,7.27109099]
[1734349116151,3.98300899,215.65,215.64,7.27109099]
[1734349116346,3.98300899,215.68,215.64,7.27109099]
[1734349116644,3.98300899,215.67,215.64,7.27109099]
[1734349116847,2.3187,215.69,215.64,2.3192]
[1734349117052,3.98949723,215.68,215.65,7.27109099]
[1734349117248,3.98949723,215.67,215.65,7.27109099]
[1734349117444,2.3187,215.69,215.65,7.27109099]
[1734349117445,3.98949723,215.66,215.65,7.27109099]
[1734349117646,3.98949723,215.68,215.65,7.27109099]
[1734349117849,3.98949723,215.67,215.65,7.27109099]
[1734349118050,3.98949723,215.68,215.66,2.3189]
[1734349118245,2.3184,215.72,215.68,7.27109099]
[1734349118746,3.99333964,215.71,215.68,7.27109099]
[1734349118943,3.99333964,215.7,215.68,7.27109099]
[1734349119146,3.99333964,215.69,215.68,7.27109099]
[1734349119348,3.99333964,215.71,215.68,7.27109099]
[1734349119552,3.99333964,215.7,215.67,3.04]
[1734349119750,1.5223,215.76,215.69,2.3187]
[1734349119952,6.31501418,215.75,215.69,2.3187]
[1734349120252,3.99681418,215.74,215.69,2.3187]
[1734349120557,3.99681418,215.73,215.7,5.09913335]
[1734349120745,3.99681418,215.72,215.69,2.3187]
[1734349120947,3.99681418,215.71,215.7,12.37022278]
[1734349121150,3.99960389,215.75,215.7,12.37022278]
[1734349121349,3.99960389,215.75,215.69,3.04]
[1734349121350,4.00207835,215.74,215.72,7.27109099]
[1734349121548,4.00207835,215.74,215.69,3.04]
[1734349121549,4.00207835,215.73,215.69,3.04]
[1734349121752,4.00207835,215.72,215.7,5.10164574]
[1734349121953,7.27109099,215.75,215.71,5.10164574]
[1734349122151,7.27109099,215.75,215.69,3.04]
[1734349122152,4.00197021,215.74,215.69,3.04]
[1734349122356,4.00197021,215.73,215.7,5.1011374]
[1734349122550,4.00197021,215.72,215.71,5.1011374]
[1734349124456,4.00197021,215.72,215.7,7.27109099]
[1734349124652,9.58879099,215.78,215.72,2.3183]
[1734349124852,4.00546503,215.77,215.72,9.58939099]
[1734349125057,4.00546503,215.76,215.72,9.58939099]
[1734349125258,4.00546503,215.75,215.72,9.58939099]
[1734349125555,4.00546503,215.74,215.73,2.3182]
[1734349125861,1.5869,215.81,215.73,12.37532403]
[1734349126055,1.5869,215.81,215.76,7.27109099]
[1734349126056,2.3175,215.8,215.76,7.27109099]
[1734349127956,2.3173,215.82,215.78,2.3177]
[1734349128559,3.04,215.92,215.78,7.27109099]
[1734349128758,2.3172,215.83,215.79,2.3176]
[1734349129161,2.3172,215.83,215.78,7.27109099]
[1734349129460,11.3137035,215.89,215.8,2.3175]
[1734349129658,2.3171,215.85,215.8,2.3175]
[1734349130258,2.3169,215.86,215.82,2.3172]
[1734349131565,2.3169,215.86,215.82,9.58829099]
[1734349133065,2.3169,215.86,215.82,7.27109099]
[1734349133966,2.3169,215.86,215.83,3.04]
[1734349134868,2.3168,215.87,215.83,5.3572]
[1734349135175,2.3168,215.87,215.83,3.04]
[1734349135772,2.9802,215.93,215.86,7.27109099]
[1734349136169,7.27109099,215.93,215.86,7.27109099]
[1734349136368,7.27109099,215.93,215.87,2.3168]
[1734349136567,11.27922226,215.98,215.9,7.27109099]
[1734349136775,2.316,215.95,215.9,12.62749099]
[1734349136977,2.316,215.95,215.9,10.31109099]
[1734349137170,3.1616,215.99,215.9,10.31109099]
[1734349137369,7.27109099,215.97,215.9,10.31109099]
[1734349137576,7.27109099,215.97,215.92,7.27109099]
[1734349138074,9.58679099,215.97,215.93,2.3161]
[1734349138374,7.27109099,215.97,215.93,2.3161]
[1734349138567,7.27109099,216.02,215.94,7.27109099]
[1734349138878,7.27109099,216.02,215.95,2.84]
[1734349139580,7.27109099,216.02,215.95,5.1559]
[1734349139581,2.3154,216.0,215.95,5.1559]
[1734349139769,2.3154,216.0,215.96,7.27109099]
[1734349139974,2.3154,216.0,215.95,5.1559]
[1734349140475,43.97225946,216.04,215.93,11.32866776]
[1734349140776,43.97225946,216.04,215.96,2.84]
[1734349140979,43.97225946,216.04,215.96,16.48436776]
[1734349140980,2.3152,216.02,215.96,16.48436776]
[1734349141177,2.3152,216.02,215.96,14.16866776]
[1734349141976,1.5687,216.14,216.0,11.32866776]
[1734349142177,12.79336776,216.13,216.01,2.84]
[1734349142480,12.79336776,216.13,216.02,2.3152]
[1734349142481,2.3146,216.08,216.02,2.3152]
[1734349142776,12.79336776,216.13,216.02,2.3152]
[1734349143080,5.6567891,216.12,216.02,2.3152]
[1734349143276,12.79336776,216.13,216.03,2.315]
[1734349143678,1.4647,216.13,216.04,2.3149]
[1734349143879,1.4647,216.13,216.03,11.32866776]
[1734349144078,1.4647,216.13,216.01,4.3209]
[1734349144279,1.4647,216.13,216.02,11.32866776]
[1734349144784,446.4745744,216.48,216.05,11.32866776]
[1734349144985,11.32866776,216.18,216.06,2.84]
[1734349145282,3.1452,216.23,216.08,11.32866776]
[1734349145484,5.64773936,216.2,216.08,11.32866776]
[1734349145875,2.3138,216.16,216.1,2.3143]
[1734349146188,14.47386776,216.23,216.11,14.16866776]
[1734349146379,11.32866776,216.2,216.12,2.84]
[1734349146580,11.32866776,216.2,216.11,2.84]
[1734349147085,2.3138,216.15,216.1,5.1543]
[1734349147479,2.3134,216.19,216.12,2.3141]
[1734349147682,5.54935831,216.22,216.12,2.3141]
[1734349147883,14.47386776,216.23,216.12,2.3141]
[1734349148082,2.3136,216.18,216.12,2.3141]
[1734349148383,14.47386776,216.23,216.12,11.32866776]
[1734349148585,2.3131,216.21,216.12,11.32866776]
[1734349148783,11.32866776,216.26,216.17,2.3136]
[1734349149685,11.32866776,216.26,216.17,5.1536]
[1734349149984,4.3055,216.28,216.17,5.1536]
[1734349150181,1.4655,216.28,216.17,5.1536]
[1734349150383,11.32866776,216.31,216.2,2.3132]
[1734349150984,2.84,216.33,216.22,2.313]
[1734349151284,16.86524618,216.34,216.21,14.16866776]
[1734349151582,2.3126,216.27,216.21,14.16866776]
[1734349152383,11.32866776,216.28,216.18,2.84]
[1734349152794,2.3128,216.25,216.18,2.84]
[1734349152994,3.0441,216.27,216.18,2.84]
[1734349153491,2.313,216.22,216.18,2.84]
[1734349153883,2.3132,216.21,216.15,13.64236776]
[1734349154089,2.3132,216.21,216.16,2.84]
[1734349154285,3.0441,216.27,216.16,2.84]
[1734349154489,3.0441,216.27,216.18,11.32866776]
[1734349155294,2.3128,216.25,216.18,13.64206776]
[1734349155491,1.602,216.3,216.18,11.32866776]
[1734349155990,2.3132,216.21,216.18,11.32866776]
[1734349157192,1.602,216.3,216.16,5.54879727]
[1734349157395,11.32866776,216.24,216.09,11.32866776]
[1734349157698,2.84,216.23,216.08,14.16866776]
[1734349157892,5.8278,216.23,216.08,14.16866776]
[1734349158197,5.8278,216.23,216.09,2.3144]
[1734349158198,2.3139,216.15,216.09,2.3144]
[1734349158699,2.3141,216.13,216.08,14.16866776]
[1734349158998,14.16866776,216.18,216.05,17.33096776]
[1734349159196,2.3139,216.14,216.05,11.32866776]
[1734349159398,2.84,216.17,216.05,11.32866776]
[1734349159896,2.3146,216.08,216.05,11.32866776]
[1734349160398,11.32866776,216.15,216.0,1.5599]
[1734349160699,11.32866776,216.12,216.0,7.07859845]
[1734349160889,14.16866776,216.12,216.0,7.07859845]
[1734349161290,11.32866776,216.09,215.96,17.16406776]
[1734349161893,2.3148,216.06,215.96,19.47986776]
[1734349162099,14.16866776,216.09,215.96,17.16406776]
[1734349162492,14.16866776,216.09,215.96,19.47986776]
[1734349163091,14.16866776,216.09,215.96,22.64273939]
[1734349163092,2.3148,216.06,215.96,22.64273939]
[1734349163295,4.6223,216.11,215.99,11.32866776]
[1734349163491,2.84,216.1,215.99,11.32866776]
[1734349163697,3.1047,216.11,216.02,11.32866776]
[1734349163897,14.16866776,216.15,216.02,14.16866776]
[1734349164296,11.32866776,216.12,215.99,14.16866776]
[1734349164500,11.32866776,216.09,215.99,2.84]
[1734349164899,2.3154,216.01,215.99,2.84]
[1734349165093,2.9818,216.08,215.99,2.84]
[1734349165294,2.3152,216.02,215.96,18.32623939]
[1734349165502,2.9818,216.08,215.96,20.64203939]
[1734349165894,2.9818,216.08,215.97,2.84]
[1734349166806,2.9818,216.08,215.97,5.1557]
[1734349167501,2.9818,216.08,215.98,2.3156]
[1734349168002,2.3151,216.03,215.98,2.3156]
[1734349168398,2.9818,216.08,215.97,2.84]
[1734349168595,2.3153,216.01,215.97,2.84]
[1734349168905,2.3153,216.01,215.96,20.64203939]
[1734349169099,2.3153,216.01,215.97,2.74]
[1734349171599,11.32866776,216.07,215.94,5.848]
[1734349171805,2.74,216.06,215.95,5.03265381]
[1734349172003,2.3151,216.03,215.94,5.848]
[1734349172204,2.74,216.06,215.95,5.03267889]
[1734349172403,2.74,216.06,215.94,5.848]
[1734349172705,2.3156,215.98,215.94,5.848]
[1734349172905,2.3156,215.98,215.95,5.03676389]
[1734349173208,2.3156,215.98,215.96,5.03676389]
[1734349173404,2.3156,215.98,215.94,11.28124467]
[1734349173601,2.3156,215.98,215.95,5.04033851]
[1734349173808,2.3156,215.98,215.96,5.04033851]
[1734349174110,2.3155,216.0,215.96,11.32866776]
[1734349174306,2.3155,216.0,215.97,5.04329393]
[1734349174512,2.74,216.06,215.98,5.04410395]
[1734349174808,2.74,216.06,215.96,11.32866776]
[1734349175009,2.3153,216.02,215.97,5.0440871]
[1734349175205,2.3153,216.02,215.96,13.64436776]
[1734349175206,2.3153,216.02,215.98,5.0440871]
[1734349175411,2.3153,216.02,215.99,5.0440871]
[1734349175610,2.3153,216.02,215.96,11.32866776]
[1734349176011,2.3153,216.02,215.97,5.04815228]
[1734349176207,2.3153,216.02,215.98,5.04819274]
[1734349176407,2.3153,216.02,215.97,2.3157]
[1734349176605,2.3151,216.04,215.98,5.04904697]
[1734349176808,3.1202,216.14,216.02,11.32866776]
[1734349177016,3.1202,216.14,216.03,2.315]
[1734349177209,2.3145,216.09,216.04,2.74]
[1734349177919,2.3145,216.08,216.04,5.055]
[1734349178319,11.32866776,216.13,215.99,11.32866776]
[1734349178513,11.32866776,216.13,216.0,5.05755343]
[1734349178823,11.32866776,216.1,216.01,2.74]
[1734349179011,11.32866776,216.1,215.99,2.74]
[1734349179415,2.3152,216.02,216.0,5.05803389]
[1734349179715,2.3152,216.02,215.99,2.74]
[1734349179911,2.3152,216.02,216.0,5.06204057]
[1734349180117,11.32866776,216.1,215.99,2.74]
[1734349180118,2.3151,216.03,215.99,2.74]
[1734349180313,2.74,216.12,216.0,5.06570246]
[1734349180507,2.74,216.12,215.99,2.74]
[1734349180508,2.74,216.12,216.01,5.06570246]
[1734349180707,2.74,216.12,216.02,5.06570246]
[1734349181016,2.74,216.12,216.03,5.0660245]
[1734349181220,2.74,216.12,215.99,14.06866776]
[1734349181411,2.74,216.12,216.01,2.3153]